[Event "NK ABC Kwalificatie 2"]
[Site "Zoetermeer, Netherlands"]
[Date "2025.01.05"]
[Round "5.6"]
[White "Lopes, Samuel"]
[Black "Zhu, Chenwu"]
[Result "0-1"]
[TimeControl "55+10"]
[WhiteFideId "8763414"]
[BlackFideId "8733846"]
[WhiteElo "1990"]
[BlackElo "2177"]

1. e4 {[%clk 00:55:17]} {[%emt 00:00:02]} c5 {[%clk 00:55:16]} {[%emt
00:00:04]} 2. Nc3 {[%clk 00:55:17]} {[%emt 00:00:10]} d6 {[%clk 00:55:23]}
{[%emt 00:00:03]} 3. g3 {[%clk 00:55:19]} {[%emt 00:00:08]} Nc6 {[%clk
00:55:07]} {[%emt 00:00:26]} 4. Bg2 {[%clk 00:55:21]} {[%emt 00:00:09]} g6
{[%clk 00:55:09]} {[%emt 00:00:08]} 5. d3 {[%clk 00:55:18]} {[%emt 00:00:12]}
Bg7 {[%clk 00:55:15]} {[%emt 00:00:04]} 6. f4 {[%clk 00:54:57]} {[%emt
00:00:30]} e6 {[%clk 00:55:07]} {[%emt 00:00:18]} 7. Nf3 {[%clk 00:54:51]}
{[%emt 00:00:16]} Nge7 {[%clk 00:55:11]} {[%emt 00:00:06]} 8. O-O {[%clk
00:54:49]} {[%emt 00:00:12]} O-O {[%clk 00:55:11]} {[%emt 00:00:10]} 9. Be3
{[%clk 00:54:26]} {[%emt 00:00:33]} Rb8 {[%clk 00:55:18]} {[%emt 00:00:03]} 10.
Rb1 {[%clk 00:51:57]} {[%emt 00:02:39]} Nd4 {[%clk 00:52:08]} {[%emt 00:03:20]}
11. Ne2 {[%clk 00:51:18]} {[%emt 00:00:49]} Nec6 {[%clk 00:50:18]} {[%emt
00:02:01]} 12. c3 {[%clk 00:50:18]} {[%emt 00:01:10]} Nxf3+ {[%clk 00:48:43]}
{[%emt 00:01:45]} 13. Bxf3 {[%clk 00:50:25]} {[%emt 00:00:03]} b6 {[%clk
00:46:48]} {[%emt 00:02:05]} 14. Qd2 {[%clk 00:48:36]} {[%emt 00:02:00]} d5
{[%clk 00:45:31]} {[%emt 00:01:26]} 15. e5 {[%clk 00:48:05]} {[%emt 00:00:41]}
Ba6 {[%clk 00:42:44]} {[%emt 00:02:57]} 16. b4 {[%clk 00:41:28]} {[%emt
00:06:47]} d4 {[%clk 00:37:10]} {[%emt 00:05:44]} 17. cxd4 {[%clk 00:31:08]}
{[%emt 00:10:30]} Nxd4 {[%clk 00:35:07]} {[%emt 00:02:13]} 18. Bxd4 {[%clk
00:30:46]} {[%emt 00:00:32]} cxd4 {[%clk 00:35:10]} {[%emt 00:00:07]} 19. b5
{[%emt 00:00:18]} Bb7 {[%clk 00:34:51]} {[%emt 00:00:27]} 20. Bxb7 {[%clk
00:27:25]} {[%emt 00:03:25]} Rxb7 {[%clk 00:34:59]} {[%emt 00:00:01]} 21. Rb4
{[%clk 00:27:18]} {[%emt 00:00:17]} Rd7 {[%clk 00:27:52]} {[%emt 00:07:18]} 22.
Qb2 {[%clk 00:25:56]} {[%emt 00:01:32]} Qa8 {[%clk 00:26:21]} {[%emt 00:01:40]}
23. Nxd4 {[%clk 00:23:57]} {[%emt 00:02:10]} Qd5 {[%clk 00:24:09]} {[%emt
00:02:22]} 24. Qb3 {[%clk 00:23:15]} {[%emt 00:00:52]} Qxb3 {[%clk 00:21:57]}
{[%emt 00:02:22]} 25. axb3 {[%clk 00:23:22]} {[%emt 00:00:03]} Rc8 {[%clk
00:21:37]} {[%emt 00:00:29]} 26. Nc6 {[%clk 00:21:35]} {[%emt 00:01:58]} Bf8
{[%clk 00:20:05]} {[%emt 00:01:43]} 27. Rc4 {[%clk 00:20:56]} {[%emt 00:00:48]}
Kg7 {[%clk 00:19:18]} {[%emt 00:00:57]} 28. d4 {[%clk 00:16:12]} {[%emt
00:04:54]} Rd5 {[%clk 00:18:52]} {[%emt 00:00:35]} 29. Rf3 {[%clk 00:15:15]}
{[%emt 00:01:07]} Rc7 {[%clk 00:17:25]} {[%emt 00:01:37]} 30. Rfc3 {[%clk
00:09:33]} {[%emt 00:05:53]} Rxb5 {[%clk 00:16:14]} {[%emt 00:01:21]} 31. Ra4
{[%clk 00:08:21]} {[%emt 00:01:22]} a5 {[%emt 00:05:29]} 32. Rac4 {[%clk
00:06:01]} Rd7 {[%clk 00:12:50]} {[%emt 00:00:44]} 33. Nb8 {[%clk 00:05:11]}
{[%emt 00:01:00]} Rb7 {[%clk 00:11:39]} {[%emt 00:01:21]} 34. Na6 {[%clk
00:04:48]} {[%emt 00:00:33]} Rd5 {[%clk 00:10:36]} {[%emt 00:01:14]} 35. Nc7
{[%clk 00:04:56]} {[%emt 00:00:03]} b5 {[%clk 00:09:06]} {[%emt 00:01:40]} 36.
Rc6 {[%clk 00:03:32]} {[%emt 00:01:34]} Rxd4 {[%clk 00:08:15]} {[%emt
00:01:01]} 37. Ne8+ {[%clk 00:03:21]} {[%emt 00:00:21]} Kh6 {[%clk 00:07:42]}
{[%emt 00:00:43]} 38. Nf6 {[%clk 00:02:22]} {[%emt 00:01:09]} Bb4 {[%clk
00:06:21]} {[%emt 00:01:30]} 39. Rf3 {[%clk 00:02:07]} {[%emt 00:00:25]} Be7
{[%clk 00:05:05]} {[%emt 00:01:27]} 40. g4 {[%clk 00:01:49]} {[%emt 00:00:29]}
Bxf6 {[%clk 00:05:08]} {[%emt 00:00:06]} 41. exf6 {[%clk 00:01:52]} {[%emt
00:00:08]} g5 {[%clk 00:05:06]} {[%emt 00:00:12]} 42. fxg5+ {[%clk 00:01:08]}
{[%emt 00:00:53]} Kxg5 {[%clk 00:05:08]} {[%emt 00:00:08]} 43. h3 {[%clk
00:01:03]} {[%emt 00:00:16]} a4 {[%clk 00:03:52]} {[%emt 00:01:25]} 44. Rc5+
{[%clk 00:00:44]} {[%emt 00:00:29]} Kg6 {[%clk 00:03:50]} {[%emt 00:00:11]} 45.
Rc8 {[%clk 00:00:35]} {[%emt 00:00:20]} a3 {[%clk 00:02:48]} {[%emt 00:01:12]}
46. Rg8+ {[%clk 00:00:39]} {[%emt 00:00:06]} Kh6 {[%clk 00:02:57]} {[%emt
00:00:01]} 47. h4 {[%clk 00:00:13]} {[%emt 00:00:36]} a2 {[%clk 00:02:48]}
{[%emt 00:00:18]} 48. Rf1 {[%clk 00:00:21]} {[%emt 00:00:03]} Rbd7 {[%clk
00:02:34]} {[%emt 00:00:24]} 49. Rg5 {[%clk 00:00:11]} {[%emt 00:00:20]} R7d5
{[%clk 00:02:04]} {[%emt 00:00:40]} 50. Rg7 {[%clk 00:00:19]} {[%emt 00:00:02]}
Rd1 {[%clk 00:01:52]} {[%emt 00:00:22]} 51. g5+ {[%clk 00:00:22]} {[%emt
00:00:08]} Kh5 {[%clk 00:01:59]} {[%emt 00:00:03]} 52. Rxh7+ {[%clk 00:00:24]}
{[%emt 00:00:07]} Kg4 {[%clk 00:02:08]} {[%emt 00:00:01]} 53. g6 {[%clk
00:00:28]} {[%emt 00:00:06]} Rxf1+ {[%clk 00:02:15]} {[%emt 00:00:03]} 0-1

[Event "NK ABC Kwalificatie 2"]
[Site "Zoetermeer, Netherlands"]
[Date "2025.01.05"]
[Round "5.7"]
[White "Teianu, Maxim"]
[Black "Madularea, David"]
[Result "1-0"]
[TimeControl "55+10"]
[WhiteFideId "8926093"]
[BlackFideId "8700494"]
[WhiteElo "2026"]
[BlackElo "2232"]

1. d4 {[%clk 00:55:19]} Nf6 {[%clk 00:54:54]} {[%emt 00:00:27]} 2. c4 {[%clk
00:55:20]} {[%emt 00:00:08]} e6 {[%clk 00:54:59]} {[%emt 00:00:05]} 3. Nf3
{[%clk 00:55:25]} {[%emt 00:00:06]} Nc6 {[%clk 00:55:02]} {[%emt 00:00:07]} 4.
Nc3 {[%clk 00:54:56]} {[%emt 00:00:39]} Bb4 {[%clk 00:55:07]} {[%emt 00:00:05]}
5. Bd2 {[%clk 00:54:13]} {[%emt 00:00:53]} d6 {[%clk 00:55:07]} {[%emt
00:00:09]} 6. Qc2 {[%clk 00:53:25]} {[%emt 00:00:58]} O-O {[%clk 00:54:35]}
{[%emt 00:00:42]} 7. a3 {[%clk 00:52:47]} {[%emt 00:00:49]} Bxc3 {[%clk
00:54:39]} {[%emt 00:00:06]} 8. Bxc3 {[%clk 00:52:52]} {[%emt 00:00:06]} a5
{[%clk 00:54:40]} {[%emt 00:00:08]} 9. e3 {[%clk 00:50:22]} {[%emt 00:02:40]}
Re8 {[%clk 00:54:03]} {[%emt 00:00:46]} 10. Rd1 {[%clk 00:48:36]} {[%emt
00:01:56]} Qe7 {[%clk 00:53:29]} {[%emt 00:00:44]} 11. Be2 {[%clk 00:48:22]}
{[%emt 00:00:24]} e5 {[%clk 00:53:04]} {[%emt 00:00:34]} 12. d5 {[%clk
00:48:07]} {[%emt 00:00:25]} Nb8 {[%clk 00:52:43]} {[%emt 00:00:30]} 13. e4
{[%clk 00:47:49]} {[%emt 00:00:29]} b6 {[%clk 00:46:50]} {[%emt 00:06:03]} 14.
Nd2 {[%clk 00:46:49]} {[%emt 00:01:10]} a4 {[%clk 00:46:38]} {[%emt 00:00:22]}
15. O-O {[%clk 00:46:31]} {[%emt 00:00:29]} Nbd7 {[%clk 00:46:22]} {[%emt
00:00:24]} 16. Nb1 {[%clk 00:44:47]} {[%emt 00:01:54]} Nc5 {[%clk 00:46:00]}
{[%emt 00:00:32]} 17. f3 {[%clk 00:44:48]} {[%emt 00:00:10]} Bd7 {[%clk
00:44:26]} {[%emt 00:01:43]} 18. Bd2 {[%clk 00:44:21]} {[%emt 00:00:37]} Nh5
{[%clk 00:41:27]} {[%emt 00:03:11]} 19. g3 {[%clk 00:43:35]} {[%emt 00:00:56]}
g6 {[%clk 00:39:04]} {[%emt 00:02:33]} 20. Nc3 {[%clk 00:41:07]} {[%emt
00:02:39]} Ng7 {[%clk 00:35:58]} {[%emt 00:03:16]} 21. Rf2 {[%clk 00:38:09]}
{[%emt 00:03:08]} f5 {[%clk 00:32:30]} {[%emt 00:03:38]} 22. Rdf1 {[%clk
00:36:50]} {[%emt 00:01:29]} Rf8 {[%clk 00:31:26]} {[%emt 00:01:13]} 23. Qd1
{[%clk 00:35:20]} {[%emt 00:01:40]} f4 {[%clk 00:27:45]} {[%emt 00:03:52]} 24.
g4 {[%clk 00:34:50]} {[%emt 00:00:40]} Qh4 {[%clk 00:27:12]} {[%emt 00:00:42]}
25. Rg2 {[%clk 00:32:34]} {[%emt 00:02:27]} Kf7 {[%clk 00:26:01]} {[%emt
00:01:20]} 26. Be1 {[%clk 00:31:34]} {[%emt 00:01:10]} Qh3 {[%clk 00:25:38]}
{[%emt 00:00:33]} 27. Kh1 {[%clk 00:30:36]} {[%emt 00:01:09]} g5 {[%clk
00:20:53]} {[%emt 00:04:54]} 28. Rfg1 {[%clk 00:29:43]} {[%emt 00:01:04]} Rh8
{[%clk 00:20:12]} {[%emt 00:00:51]} 29. Bf1 {[%clk 00:29:09]} {[%emt 00:00:44]}
Qh6 {[%clk 00:20:05]} {[%emt 00:00:16]} 30. h4 {[%clk 00:28:41]} {[%emt
00:00:39]} Qg6 {[%clk 00:17:38]} {[%emt 00:02:36]} 31. h5 {[%clk 00:26:41]}
{[%emt 00:02:11]} Nxh5 {[%clk 00:17:13]} {[%emt 00:00:35]} 32. gxh5 {[%clk
00:26:39]} {[%emt 00:00:12]} Qxh5+ {[%clk 00:17:18]} {[%emt 00:00:05]} 33. Rh2
{[%clk 00:26:46]} {[%emt 00:00:04]} Qg6 {[%clk 00:17:19]} {[%emt 00:00:08]} 34.
Bh4 {[%clk 00:25:34]} {[%emt 00:01:22]} h6 {[%clk 00:17:15]} {[%emt 00:00:13]}
35. Nb5 {[%clk 00:25:20]} {[%emt 00:00:24]} Rac8 {[%clk 00:13:51]} {[%emt
00:03:33]} 36. Qe1 {[%clk 00:20:56]} {[%emt 00:04:35]} Qf6 {[%clk 00:12:35]}
{[%emt 00:01:25]} 37. Bf2 {[%clk 00:18:17]} {[%emt 00:02:50]} h5 {[%clk
00:11:30]} {[%emt 00:01:15]} 38. Be2 {[%clk 00:16:53]} {[%emt 00:01:33]} h4
{[%emt 00:07:54]} 39. Bxc5 {[%clk 00:15:16]} {[%emt 00:00:01]} bxc5 {[%clk
00:05:36]} {[%emt 00:00:06]} 40. Qf2 {[%clk 00:15:18]} {[%emt 00:00:09]} h3
{[%clk 00:05:01]} {[%emt 00:00:44]} 41. Rg4 {[%clk 00:14:29]} {[%emt 00:00:59]}
Bxg4 {[%clk 00:04:03]} {[%emt 00:01:08]} 42. fxg4 {[%clk 00:14:35]} {[%emt
00:00:04]} Rh4 {[%clk 00:03:18]} {[%emt 00:00:56]} 43. Qf3 {[%clk 00:14:19]}
{[%emt 00:00:26]} Qe7 {[%clk 00:02:22]} {[%emt 00:01:05]} 44. Bd1 {[%clk
00:14:12]} {[%emt 00:00:17]} Ra8 {[%clk 00:01:42]} {[%emt 00:00:50]} 45. Nc3
{[%clk 00:13:50]} {[%emt 00:00:32]} Qd7 {[%clk 00:01:49]} {[%emt 00:00:03]} 46.
Nb5 {[%clk 00:13:20]} {[%emt 00:00:40]} Kg7 {[%clk 00:01:49]} {[%emt 00:00:09]}
47. Kg1 {[%clk 00:12:50]} {[%emt 00:00:41]} Kf6 {[%clk 00:01:19]} {[%emt
00:00:40]} 48. Kf2 {[%clk 00:12:49]} {[%emt 00:00:11]} Kg7 {[%clk 00:01:20]}
{[%emt 00:00:08]} 49. Ke1 {[%clk 00:12:33]} {[%emt 00:00:27]} Kg6 {[%clk
00:00:47]} {[%emt 00:00:42]} 50. Kd2 {[%clk 00:12:24]} {[%emt 00:00:20]} Kg7
{[%clk 00:00:47]} {[%emt 00:00:09]} 51. Kc1 {[%clk 00:12:28]} {[%emt 00:00:06]}
Kg6 {[%clk 00:00:36]} {[%emt 00:00:22]} 52. Kb1 {[%clk 00:12:33]} {[%emt
00:00:05]} Kg7 {[%clk 00:00:27]} {[%emt 00:00:18]} 53. Ka2 {[%clk 00:12:30]}
{[%emt 00:00:14]} Kg6 {[%clk 00:00:26]} {[%emt 00:00:10]} 54. Nc3 {[%clk
00:12:20]} {[%emt 00:00:20]} Kg7 {[%clk 00:00:25]} {[%emt 00:00:12]} 55. Nb1
{[%clk 00:12:00]} {[%emt 00:00:30]} Qc8 {[%clk 00:00:18]} {[%emt 00:00:17]} 56.
Nd2 {[%clk 00:11:53]} {[%emt 00:00:17]} Qa6 {[%clk 00:00:17]} {[%emt 00:00:11]}
57. Qd3 {[%clk 00:11:16]} {[%emt 00:00:47]} Rb8 {[%clk 00:00:16]} {[%emt
00:00:10]} 58. Be2 {[%clk 00:09:59]} {[%emt 00:01:28]} Qb7 {[%clk 00:00:15]}
{[%emt 00:00:09]} 59. Qc3 {[%clk 00:10:01]} {[%emt 00:00:09]} Kf6 {[%clk
00:00:18]} {[%emt 00:00:07]} 60. Bd1 {[%clk 00:10:01]} {[%emt 00:00:11]} Qa6
{[%clk 00:00:15]} {[%emt 00:00:12]} 61. Bf3 {[%clk 00:09:51]} {[%emt 00:00:21]}
Qb6 {[%clk 00:00:13]} {[%emt 00:00:11]} 62. Bd1 {[%clk 00:09:21]} {[%emt
00:00:41]} Qa6 {[%clk 00:00:21]} {[%emt 00:00:01]} 63. Bc2 {[%clk 00:07:52]}
{[%emt 00:01:40]} Rxg4 {[%clk 00:00:12]} {[%emt 00:00:19]} 64. Qxh3 {[%clk
00:07:46]} {[%emt 00:00:16]} Rh4 {[%clk 00:00:11]} {[%emt 00:00:12]} 65. Qf5+
{[%clk 00:07:42]} {[%emt 00:00:13]} Ke7 {[%clk 00:00:20]} 66. Qxg5+ {[%clk
00:07:40]} {[%emt 00:00:12]} Kd7 {[%clk 00:00:29]} 67. Qf5+ {[%clk 00:07:33]}
{[%emt 00:00:18]} Kd8 {[%clk 00:00:34]} {[%emt 00:00:05]} 68. Rxh4 {[%clk
00:07:31]} {[%emt 00:00:12]} Qb7 {[%clk 00:00:35]} {[%emt 00:00:08]} 69. Rh8+
{[%clk 00:07:36]} {[%emt 00:00:06]} Ke7 {[%clk 00:00:45]} 70. Qe6# {[%clk
00:07:40]} {[%emt 00:00:05]} 1-0

[Event "NK ABC Kwalificatie 2"]
[Site "Zoetermeer, Netherlands"]
[Date "2025.01.05"]
[Round "5.8"]
[White "Kazarjan, Gachatur"]
[Black "De Wit, Evan"]
[Result "1-0"]
[TimeControl "55+10"]
[WhiteFideId "8595884"]
[BlackFideId "8935949"]
[WhiteElo "2105"]
[BlackElo "1955"]

1. e4 {[%clk 00:51:48]} {[%emt 00:03:31]} c5 {[%clk 00:55:15]} {[%emt
00:00:06]} 2. Nf3 {[%clk 00:51:47]} {[%emt 00:00:11]} Nc6 {[%clk 00:55:20]}
{[%emt 00:00:04]} 3. d4 {[%clk 00:51:48]} {[%emt 00:00:08]} cxd4 {[%clk
00:55:25]} {[%emt 00:00:05]} 4. Nxd4 {[%clk 00:51:57]} {[%emt 00:00:02]} Nf6
{[%clk 00:55:25]} {[%emt 00:00:09]} 5. Nc3 {[%clk 00:51:59]} {[%emt 00:00:08]}
e5 {[%clk 00:55:31]} {[%emt 00:00:04]} 6. Ndb5 {[%clk 00:52:07]} {[%emt
00:00:02]} d6 {[%clk 00:55:34]} {[%emt 00:00:07]} 7. Nd5 {[%clk 00:52:14]}
{[%emt 00:00:02]} Nxd5 {[%clk 00:55:34]} {[%emt 00:00:10]} 8. exd5 {[%clk
00:52:22]} {[%emt 00:00:03]} Ne7 {[%clk 00:55:33]} {[%emt 00:00:09]} 9. c4
{[%clk 00:52:29]} {[%emt 00:00:04]} Ng6 {[%clk 00:55:36]} {[%emt 00:00:07]} 10.
Bd3 {[%clk 00:52:36]} {[%emt 00:00:04]} Be7 {[%clk 00:55:10]} {[%emt 00:00:36]}
11. O-O {[%clk 00:51:51]} {[%emt 00:00:55]} a6 {[%clk 00:55:14]} {[%emt
00:00:05]} 12. Nc3 {[%clk 00:51:57]} {[%emt 00:00:03]} f5 {[%clk 00:55:13]}
{[%emt 00:00:12]} 13. f3 {[%clk 00:50:13]} {[%emt 00:01:54]} O-O {[%clk
00:55:15]} {[%emt 00:00:08]} 14. Be3 {[%clk 00:50:01]} {[%emt 00:00:23]} Bg5
{[%clk 00:55:12]} {[%emt 00:00:12]} 15. Bf2 {[%clk 00:47:00]} {[%emt 00:03:12]}
Nf4 {[%clk 00:43:40]} {[%emt 00:11:43]} 16. Bc2 {[%clk 00:44:30]} {[%emt
00:02:40]} Qe8 {[%clk 00:39:22]} {[%emt 00:04:27]} 17. Ne2 {[%clk 00:41:58]}
{[%emt 00:02:42]} e4 {[%clk 00:36:29]} {[%emt 00:03:03]} 18. Nxf4 {[%clk
00:41:08]} {[%emt 00:01:00]} Bxf4 {[%clk 00:35:11]} {[%emt 00:01:28]} 19. Bd4
{[%clk 00:39:55]} {[%emt 00:01:23]} Qh5 {[%clk 00:32:11]} {[%emt 00:03:10]} 20.
g3 {[%clk 00:38:26]} {[%emt 00:01:40]} Qg5 {[%clk 00:31:12]} {[%emt 00:01:09]}
21. Kh1 {[%clk 00:35:18]} {[%emt 00:03:18]} Bxg3 {[%clk 00:24:01]} {[%emt
00:07:21]} 22. hxg3 {[%clk 00:34:19]} {[%emt 00:01:09]} Qxg3 {[%clk 00:24:09]}
{[%emt 00:00:02]} 23. Qe2 {[%clk 00:34:08]} {[%emt 00:00:20]} exf3 {[%clk
00:23:57]} {[%emt 00:00:23]} 24. Qh2 {[%clk 00:33:48]} {[%emt 00:00:31]} Qxh2+
{[%clk 00:22:03]} {[%emt 00:02:03]} 25. Kxh2 {[%clk 00:33:56]} {[%emt
00:00:02]} Bd7 {[%clk 00:21:55]} {[%emt 00:00:18]} 26. Rxf3 {[%clk 00:33:00]}
{[%emt 00:01:06]} Rae8 {[%clk 00:21:40]} {[%emt 00:00:24]} 27. Rg1 {[%clk
00:32:46]} {[%emt 00:00:25]} g6 {[%clk 00:21:34]} {[%emt 00:00:16]} 28. Be3
{[%clk 00:31:46]} {[%emt 00:01:09]} f4 {[%clk 00:20:39]} {[%emt 00:01:06]} 29.
Bxf4 {[%clk 00:23:59]} {[%emt 00:07:57]} Re2+ {[%clk 00:20:38]} {[%emt
00:00:10]} 30. Rg2 {[%clk 00:24:07]} {[%emt 00:00:02]} Rxg2+ {[%clk 00:20:37]}
{[%emt 00:00:11]} 31. Kxg2 {[%clk 00:24:09]} {[%emt 00:00:09]} Bg4 {[%clk
00:20:08]} {[%emt 00:00:39]} 32. Rf2 {[%clk 00:24:12]} {[%emt 00:00:07]} Rc8
{[%clk 00:19:38]} {[%emt 00:00:39]} 33. Bh6 {[%clk 00:23:45]} {[%emt 00:00:37]}
b5 {[%clk 00:19:10]} {[%emt 00:00:38]} 34. cxb5 {[%clk 00:22:36]} {[%emt
00:01:18]} axb5 {[%clk 00:19:18]} {[%emt 00:00:02]} 35. Bd3 {[%clk 00:22:20]}
{[%emt 00:00:26]} Rb8 {[%clk 00:18:56]} {[%emt 00:00:32]} 36. Bxb5 {[%clk
00:22:15]} {[%emt 00:00:15]} Bf5 {[%clk 00:19:06]} 37. Bc4 {[%emt 00:01:23]}
1-0